{"text_format":"1","workbook":"xlsx","n_sheets":2,"sheets":["Список","ЗП"],"not_rendered":{"charts":0,"images":0,"macros":1,"external_links":0,"defined_names":4,"comments":2,"pivot_tables":0},"unopened":[],"bounds":{"document_bytes":16777216,"sheet_cells":100000,"rows_first":2000,"rows_last":500,"rows_between":2000,"halvings":0,"cell_chars":16384,"cell_head_chars":4096},"cells_cut":0,"cells_raw":0,"read":"whole","date_system":"1900"}

{"sheet":"Список","index":0,"n_rows":91,"n_cols":15,"rows_kept":91,"cut":false,"hidden":false,"merged":[[7,13,7,15]]}
["Имя","Отчество","Должность","Стаж","Оклад","Премия","Всего","Налог","Заработок за день","ИО","ЗП в Евро"]
["Касьян","Витальевич","Директор по продажам",1,{"$f":"VLOOKUP(C2,ЗП!A:B,2,0)","v":210000},{"$f":"IF(D2>=10,5000,IF(D2>5,3000,0))","v":0},{"$f":"Оклад+Премия","v":210000},{"$f":"G2*0.13","v":27300},{"$f":"G2/31","v":6774.1935483870966},{"$f":"CONCATENATE(A2,\" \",B2)","v":"Касьян Витальевич"},{"$f":"ROUNDUP(G2/$O$3,0)","v":2334},null,null,null,"Курс Евро"]
["Марина","Васильева","Инженер по эксплуатации оборудования",1,{"$f":"VLOOKUP(C3,ЗП!A:B,2,0)","v":49000},{"$f":"IF(D3>=10,5000,IF(D3>5,3000,0))","v":0},49000,6370,1580.6451612903227,"Марина Васильева",545,null,null,null,90]
["Мирон","Тарасович","Инженер-конструктор категории IIВ",1,{"$f":"VLOOKUP(C4,ЗП!A:B,2,0)","v":40000},0,40000,5200,1290.3225806451612,"Мирон Тарасович",445]
["Петр","Михайлович","Инженер-механик",1,{"$f":"VLOOKUP(C5,ЗП!A:B,2,0)","v":56000},0,56000,7280,1806.4516129032259,"Петр Михайлович",623]
["Алексей","Натанович","Кладовщик",1,{"$f":"VLOOKUP(C6,ЗП!A:B,2,0)","v":37000},0,37000,4810,1193.5483870967741,"Алексей Натанович",412]
["Леонтий","Платонович","Оператор станков с программным управлением 1 категории",1,{"$f":"VLOOKUP(C7,ЗП!A:B,2,0)","v":60000},0,60000,7800,1935.483870967742,"Леонтий Платонович",667]
["Родион","Витальевич","Оператор станков с программным управлением 2 категории",1,{"$f":"VLOOKUP(C8,ЗП!A:B,2,0)","v":55000},0,55000,7150,1774.1935483870968,"Родион Витальевич",612]
["Константин","Дмитриевич","Программист ",1,{"$f":"VLOOKUP(C9,ЗП!A:B,2,0)","v":56000},0,56000,7280,1806.4516129032259,"Константин Дмитриевич",623]
["Мечеслав","Даниилович","Руководитель проектов по колонному оборудованию",1,{"$f":"VLOOKUP(C10,ЗП!A:B,2,0)","v":70000},0,70000,9100,2258.0645161290322,"Мечеслав Даниилович",778]
["Никифор","Евгеньевич","Специалист по оценке затрат",1,{"$f":"VLOOKUP(C11,ЗП!A:B,2,0)","v":66000},0,66000,8580,2129.0322580645161,"Никифор Евгеньевич",734]
["Василиса","Львовна","Администратор офиса",2,{"$f":"VLOOKUP(C12,ЗП!A:B,2,0)","v":110000},0,110000,14300,3548.3870967741937,"Василиса Львовна",1223]
["Варлаам","Кимович","Ведущий инженер по монтажу оборудования",2,{"$f":"VLOOKUP(C13,ЗП!A:B,2,0)","v":90000},0,90000,11700,2903.2258064516127,"Варлаам Кимович",1000]
["Казимир","Куприянович","Инженер по монтажу оборудования",2,{"$f":"VLOOKUP(C14,ЗП!A:B,2,0)","v":60000},0,60000,7800,1935.483870967742,"Казимир Куприянович",667]
["Александр","Александрович","Инженер-программист",2,{"$f":"VLOOKUP(C15,ЗП!A:B,2,0)","v":53000},0,53000,6890,1709.6774193548388,"Александр Александрович",589]
["Гражина","Прокловна","Секретарь",2,{"$f":"VLOOKUP(C16,ЗП!A:B,2,0)","v":35000},0,35000,4550,1129.0322580645161,"Гражина Прокловна",389]
["Кондратий","Лукьевич","Слесарь по сборке металлоконструкций",2,{"$f":"VLOOKUP(C17,ЗП!A:B,2,0)","v":50000},0,50000,6500,1612.9032258064517,"Кондратий Лукьевич",556]
["Сильва","Ильяовна","Старший менеджер по закупкам",2,{"$f":"VLOOKUP(C18,ЗП!A:B,2,0)","v":60000},0,60000,7800,1935.483870967742,"Сильва Ильяовна",667]
["Кондратий","Лукьевич","Старший оператор станков с программным управлением 2 категории",2,{"$f":"VLOOKUP(C19,ЗП!A:B,2,0)","v":45000},0,45000,5850,1451.6129032258063,"Кондратий Лукьевич",500]
["Павел","Дмитрьевич","Инженер-конструктор I категории ",3,{"$f":"VLOOKUP(C20,ЗП!A:B,2,0)","v":55000},0,55000,7150,1774.1935483870968,"Павел Дмитрьевич",612]
["Павел","Андреевич","Инженер-электромеханик",3,{"$f":"VLOOKUP(C21,ЗП!A:B,2,0)","v":37000},0,37000,4810,1193.5483870967741,"Павел Андреевич",412]
["Ибрагил","Львович","Оператор автоматических и полуавтоматических линий станков и установок 1 категории",3,{"$f":"VLOOKUP(C22,ЗП!A:B,2,0)","v":45000},0,45000,5850,1451.6129032258063,"Ибрагил Львович",500]
["Виктор","Семенович","Станочник широкого профиля",3,{"$f":"VLOOKUP(C23,ЗП!A:B,2,0)","v":50000},0,50000,6500,1612.9032258064517,"Виктор Семенович",556]
["Астра","Германовна","Ассистент",4,{"$f":"VLOOKUP(C24,ЗП!A:B,2,0)","v":45000},0,45000,5850,1451.6129032258063,"Астра Германовна",500]
["Андрей","Юлианович","Инженер по сопровождению проектов",4,{"$f":"VLOOKUP(C25,ЗП!A:B,2,0)","v":65000},0,65000,8450,2096.7741935483873,"Андрей Юлианович",723]
["Лигия","Мироновна","Инженер-конструктор категории IIБ",4,{"$f":"VLOOKUP(C26,ЗП!A:B,2,0)","v":45000},0,45000,5850,1451.6129032258063,"Лигия Мироновна",500]
["Максимилиан","Петрович","Инженер-технолог",4,{"$f":"VLOOKUP(C27,ЗП!A:B,2,0)","v":70000},0,70000,9100,2258.0645161290322,"Максимилиан Петрович",778]
["Богдан","Вячеславович","Секретарь-референт",4,{"$f":"VLOOKUP(C28,ЗП!A:B,2,0)","v":40000},0,40000,5200,1290.3225806451612,"Богдан Вячеславович",445]
["Рудольф","Яковович","Специалист по закупкам",4,{"$f":"VLOOKUP(C29,ЗП!A:B,2,0)","v":45000},0,45000,5850,1451.6129032258063,"Рудольф Яковович",500]
["Клемент","Дмитрьевич","Старший инженер по сопровождению проектов",4,{"$f":"VLOOKUP(C30,ЗП!A:B,2,0)","v":70000},0,70000,9100,2258.0645161290322,"Клемент Дмитрьевич",778]
["Александр","Ефимович","Старший специалист по закупкам",4,{"$f":"VLOOKUP(C31,ЗП!A:B,2,0)","v":70000},0,70000,9100,2258.0645161290322,"Александр Ефимович",778]
["Донат","Михайлович","Инженер-технолог комплексных проектов",5,{"$f":"VLOOKUP(C32,ЗП!A:B,2,0)","v":140000},0,140000,18200,4516.1290322580644,"Донат Михайлович",1556]
["Пантелей","Вениаминович","Логист",5,{"$f":"VLOOKUP(C33,ЗП!A:B,2,0)","v":50000},0,50000,6500,1612.9032258064517,"Пантелей Вениаминович",556]
["Вилен","Владленович","Менеджер по продаже  оборудования",5,{"$f":"VLOOKUP(C34,ЗП!A:B,2,0)","v":100000},{"$f":"IF(D34>=10,5000,IF(D34>5,3000,0))","v":0},{"$f":"Оклад+Премия","v":100000},{"$f":"G34*0.13","v":13000},{"$f":"G34/31","v":3225.8064516129034},{"$f":"CONCATENATE(A34,\" \",B34)","v":"Вилен Владленович"},{"$f":"ROUNDUP(G34/$O$3,0)","v":1112}]
["Галина","Валерьевна","Руководитель комплексных проектов",5,{"$f":"VLOOKUP(C35,ЗП!A:B,2,0)","v":170000},0,170000,22100,5483.8709677419356,"Галина Валерьевна",1889]
["Сандра","Павловна","Руководитель отдела управления персоналом",5,{"$f":"VLOOKUP(C36,ЗП!A:B,2,0)","v":250000},0,250000,32500,8064.5161290322585,"Сандра Павловна",2778]
["Мия","Николаевна","Специалист по персоналу",5,{"$f":"VLOOKUP(C37,ЗП!A:B,2,0)","v":80000},0,80000,10400,2580.6451612903224,"Мия Николаевна",889]
["Тимур","Лукьянович","Мастер участка",6,{"$f":"VLOOKUP(C38,ЗП!A:B,2,0)","v":60000},3000,63000,8190,2032.258064516129,"Тимур Лукьянович",700]
["Эльдар","Миронович","Мастер участка сборки и упаковки",6,{"$f":"VLOOKUP(C39,ЗП!A:B,2,0)","v":30000},3000,33000,4290,1064.516129032258,"Эльдар Миронович",367]
["Ян","Петрович","Менеджер по поддержке комплексных проектов",6,{"$f":"VLOOKUP(C40,ЗП!A:B,2,0)","v":132000},3000,135000,17550,4354.8387096774195,"Ян Петрович",1500]
["Сергей","Васильевич","Менеджер по развитию технологий",6,{"$f":"VLOOKUP(C41,ЗП!A:B,2,0)","v":130000},3000,133000,17290,4290.322580645161,"Сергей Васильевич",1478]
["Алия","Ярославовна","Руководитель отдела логистики",6,{"$f":"VLOOKUP(C42,ЗП!A:B,2,0)","v":80000},3000,83000,10790,2677.4193548387098,"Алия Ярославовна",923]
["Светлана","Алексеевна","Руководитель технологического отдела",6,{"$f":"VLOOKUP(C43,ЗП!A:B,2,0)","v":250000},3000,253000,32890,8161.2903225806449,"Светлана Алексеевна",2812]
["Елена","Михайловна","Бухгалтер",7,{"$f":"VLOOKUP(C44,ЗП!A:B,2,0)","v":70000},3000,73000,9490,2354.8387096774195,"Елена Михайловна",812]
["Леонтий","Германнович","Помощник генерального директора",7,{"$f":"VLOOKUP(C45,ЗП!A:B,2,0)","v":150000},3000,153000,19890,4935.4838709677415,"Леонтий Германнович",1700]
["Оскар","Проклович","Руководитель группы",7,{"$f":"VLOOKUP(C46,ЗП!A:B,2,0)","v":110000},3000,113000,14690,3645.1612903225805,"Оскар Проклович",1256]
["Мартын","Наумович","Руководитель отдела закупок",7,{"$f":"VLOOKUP(C47,ЗП!A:B,2,0)","v":85000},3000,88000,11440,2838.7096774193546,"Мартын Наумович",978]
["Софья","Натановна","Финансовый контролёр",7,{"$f":"VLOOKUP(C48,ЗП!A:B,2,0)","v":90000},3000,93000,12090,3000,"Софья Натановна",1034]
["Феодосия","Леонидовна","Заместитель главного бухгалтера",8,{"$f":"VLOOKUP(C49,ЗП!A:B,2,0)","v":80000},3000,83000,10790,2677.4193548387098,"Феодосия Леонидовна",923]
["Аркадий","Станиславович","Менеджер по подготовке тендерных предложений",8,{"$f":"VLOOKUP(C50,ЗП!A:B,2,0)","v":130000},3000,133000,17290,4290.322580645161,"Аркадий Станиславович",1478]
["Маргарита","Лукьевна","Начальник производства",8,{"$f":"VLOOKUP(C51,ЗП!A:B,2,0)","v":165000},3000,168000,21840,5419.3548387096771,"Маргарита Лукьевна",1867]
["Зиновий","Макарович","Оператор автоматических и полуавтоматических линий станков и установок 2 категории",8,{"$f":"VLOOKUP(C52,ЗП!A:B,2,0)","v":40000},3000,43000,5590,1387.0967741935483,"Зиновий Макарович",478]
["Эмилия","Кимовна","Специалист по охране труда",8,{"$f":"VLOOKUP(C53,ЗП!A:B,2,0)","v":55000},3000,58000,7540,1870.9677419354839,"Эмилия Кимовна",645]
["Марк","Адамович","Генеральный директор",9,{"$f":"VLOOKUP(C54,ЗП!A:B,2,0)","v":300000},3000,303000,39390,9774.1935483870966,"Марк Адамович",3367]
["Эльза","Азаматовна","Заместитель генерального директора ",9,{"$f":"VLOOKUP(C55,ЗП!A:B,2,0)","v":105000},3000,108000,14040,3483.8709677419356,"Эльза Азаматовна",1200]
["Игнат","Святославович","Руководитель отдела охраны труда, обеспечения качества, безопасности и экологии",9,{"$f":"VLOOKUP(C56,ЗП!A:B,2,0)","v":90000},3000,93000,12090,3000,"Игнат Святославович",1034]
["Михаил","Андреевич","Специалист по системному администрированию",9,{"$f":"VLOOKUP(C57,ЗП!A:B,2,0)","v":65000},3000,68000,8840,2193.5483870967741,"Михаил Андреевич",756]
["Олег","Георгиевич","Инженер по качеству",10,{"$f":"VLOOKUP(C58,ЗП!A:B,2,0)","v":55000},5000,60000,7800,1935.483870967742,"Олег Георгиевич",667]
["Адриан","Романович","Помощник начальника производства",10,{"$f":"VLOOKUP(C59,ЗП!A:B,2,0)","v":80000},5000,85000,11050,2741.9354838709678,"Адриан Романович",945]
["Велорий","Юрьевич","Руководитель отдела управления персоналом",10,{"$f":"VLOOKUP(C60,ЗП!A:B,2,0)","v":250000},5000,255000,33150,8225.8064516129034,"Велорий Юрьевич",2834]
["Галина","Дмитриевна","Руководитель отдела управления проектами",10,{"$f":"VLOOKUP(C61,ЗП!A:B,2,0)","v":80000},5000,85000,11050,2741.9354838709678,"Галина Дмитриевна",945]
["Григорий","Пантелеймонович","Финансовый директор",10,{"$f":"VLOOKUP(C62,ЗП!A:B,2,0)","v":100000},5000,105000,13650,3387.0967741935483,"Григорий Пантелеймонович",1167]
["Родион","Витальевич","Бригадир участка электрогазосварки",11,{"$f":"VLOOKUP(C63,ЗП!A:B,2,0)","v":54000},5000,59000,7670,1903.2258064516129,"Родион Витальевич",656]
["Севастьян","Федорович","Главный бухгалтер",11,{"$f":"VLOOKUP(C64,ЗП!A:B,2,0)","v":90000},5000,95000,12350,3064.516129032258,"Севастьян Федорович",1056]
["Екатерина","Алексеевна","Инженер по организации управления производством",11,{"$f":"VLOOKUP(C65,ЗП!A:B,2,0)","v":70000},5000,75000,9750,2419.3548387096776,"Екатерина Алексеевна",834]
["Роберт","Ярославович","Младший менеджер по сопровождению проектов",11,{"$f":"VLOOKUP(C66,ЗП!A:B,2,0)","v":35000},{"$f":"IF(D66>=10,5000,IF(D66>5,3000,0))","v":5000},{"$f":"Оклад+Премия","v":40000},{"$f":"G66*0.13","v":5200},{"$f":"G66/31","v":1290.3225806451612},{"$f":"CONCATENATE(A66,\" \",B66)","v":"Роберт Ярославович"},{"$f":"ROUNDUP(G66/$O$3,0)","v":445}]
["Вольдемар","Наумович","Оператор-нарезчик металлической ленты",11,{"$f":"VLOOKUP(C67,ЗП!A:B,2,0)","v":35000},5000,40000,5200,1290.3225806451612,"Вольдемар Наумович",445]
["Исаак","Святославович","Старший оператор станков с программным управлением 1 категории",11,{"$f":"VLOOKUP(C68,ЗП!A:B,2,0)","v":45000},5000,50000,6500,1612.9032258064517,"Исаак Святославович",556]
["Устин","Донатович","Электрогазосварщик 5 разряда",11,{"$f":"VLOOKUP(C69,ЗП!A:B,2,0)","v":60000},5000,65000,8450,2096.7741935483873,"Устин Донатович",723]
["Маргарита","Анатольевна","Заведующий складом",12,{"$f":"VLOOKUP(C70,ЗП!A:B,2,0)","v":60000},5000,65000,8450,2096.7741935483873,"Маргарита Анатольевна",723]
["Александр","Львович","Заведующий хозяйством",12,{"$f":"VLOOKUP(C71,ЗП!A:B,2,0)","v":95000},5000,100000,13000,3225.8064516129034,"Александр Львович",1112]
["Алексей","Рамилевич","Операционный директор",12,{"$f":"VLOOKUP(C72,ЗП!A:B,2,0)","v":150000},5000,155000,20150,5000,"Алексей Рамилевич",1723]
["Ирина","Николаевна","Руководитель отдела продаж",12,{"$f":"VLOOKUP(C73,ЗП!A:B,2,0)","v":200000},5000,205000,26650,6612.9032258064517,"Ирина Николаевна",2278]
["Ирина","Юрьевна","Специалист по закупкам",12,{"$f":"VLOOKUP(C74,ЗП!A:B,2,0)","v":45000},5000,50000,6500,1612.9032258064517,"Ирина Юрьевна",556]
["Виктор","Павлович","Специалист по монтажу оборудования",12,{"$f":"VLOOKUP(C75,ЗП!A:B,2,0)","v":54000},5000,59000,7670,1903.2258064516129,"Виктор Павлович",656]
["Натан","Пётрович","Бригадир участка",13,{"$f":"VLOOKUP(C76,ЗП!A:B,2,0)","v":50000},5000,55000,7150,1774.1935483870968,"Натан Пётрович",612]
["Август","Богуславович","Инженер комплексных проектов",13,{"$f":"VLOOKUP(C77,ЗП!A:B,2,0)","v":105000},5000,110000,14300,3548.3870967741937,"Август Богуславович",1223]
["Ростислав","Арсеньевич","Инженер-технолог",13,{"$f":"VLOOKUP(C78,ЗП!A:B,2,0)","v":70000},5000,75000,9750,2419.3548387096776,"Ростислав Арсеньевич",834]
["Павел","Николаевич","Начальник отдела подготовки производства",13,{"$f":"VLOOKUP(C79,ЗП!A:B,2,0)","v":76000},5000,81000,10530,2612.9032258064517,"Павел Николаевич",900]
["Максимилиан","Валерьянович","Начальник цеха производства насадки",13,{"$f":"VLOOKUP(C80,ЗП!A:B,2,0)","v":107000},5000,112000,14560,3612.9032258064517,"Максимилиан Валерьянович",1245]
["Любомир","Эльдарович","Оператор автоматических и полуавтоматических линий станков и установок 3 категории",13,{"$f":"VLOOKUP(C81,ЗП!A:B,2,0)","v":35000},5000,40000,5200,1290.3225806451612,"Любомир Эльдарович",445]
["Герасим","Федотович","Помощник руководителя по обеспечению качества",13,{"$f":"VLOOKUP(C82,ЗП!A:B,2,0)","v":40000},5000,45000,5850,1451.6129032258063,"Герасим Федотович",500]
["Мечислав","Юрьевич","Руководитель инжинирингового отдела",13,{"$f":"VLOOKUP(C83,ЗП!A:B,2,0)","v":75000},5000,80000,10400,2580.6451612903224,"Мечислав Юрьевич",889]
["Алексей","Андреевич","Инженер по сварке",14,{"$f":"VLOOKUP(C84,ЗП!A:B,2,0)","v":60000},5000,65000,8450,2096.7741935483873,"Алексей Андреевич",723]
["Венедикт","Геласьевич","Водитель погрузчика",15,{"$f":"VLOOKUP(C85,ЗП!A:B,2,0)","v":45000},5000,50000,6500,1612.9032258064517,"Венедикт Геласьевич",556]
["Исаак","Михаилович","Менеджер (в коммерческой деятельности) по продажам",15,{"$f":"VLOOKUP(C86,ЗП!A:B,2,0)","v":98000},5000,103000,13390,3322.5806451612902,"Исаак Михаилович",1145]
["Лука","Серапионович","Менеджер по инжинирингу и продаже оборудования для газопереработки",15,{"$f":"VLOOKUP(C87,ЗП!A:B,2,0)","v":88000},5000,93000,12090,3000,"Лука Серапионович",1034]
["Виссарион","Владимирович","Менеджер по сопровождению проектов",15,{"$f":"VLOOKUP(C88,ЗП!A:B,2,0)","v":78000},5000,83000,10790,2677.4193548387098,"Виссарион Владимирович",923]
["Давид","Геннадьевич","Руководитель отдела продаж",15,{"$f":"VLOOKUP(C89,ЗП!A:B,2,0)","v":200000},5000,205000,26650,6612.9032258064517,"Давид Геннадьевич",2278]
["Азарий","Оскарович","Специалист по контролю качества",15,{"$f":"VLOOKUP(C90,ЗП!A:B,2,0)","v":60000},5000,65000,8450,2096.7741935483873,"Азарий Оскарович",723]
["Макар","Оскарович","Технический менеджер по продажам",15,{"$f":"VLOOKUP(C91,ЗП!A:B,2,0)","v":110000},5000,115000,14950,3709.6774193548385,"Макар Оскарович",1278]

{"sheet":"ЗП","index":1,"n_rows":91,"n_cols":2,"rows_kept":91,"cut":false,"hidden":false,"merged":[]}
["Должность","Оклад"]
["Генеральный директор",300000]
["Заведующий хозяйством",95000]
["Операционный директор",150000]
["Бухгалтер",70000]
["Главный бухгалтер",90000]
["Заместитель главного бухгалтера",80000]
["Финансовый директор",100000]
["Финансовый контролёр",90000]
["Специалист по системному администрированию",65000]
["Инженер по качеству",55000]
["Помощник руководителя по обеспечению качества",40000]
["Руководитель отдела охраны труда, обеспечения качества, безопасности и экологии",90000]
["Специалист по контролю качества",60000]
["Специалист по охране труда",55000]
["Администратор офиса",110000]
["Руководитель отдела управления персоналом",250000]
["Секретарь",35000]
["Специалист по персоналу",80000]
["Заведующий складом",60000]
["Кладовщик",37000]
["Руководитель отдела закупок",85000]
["Специалист по закупкам",45000]
["Старший менеджер по закупкам",60000]
["Старший специалист по закупкам",70000]
["Логист",50000]
["Руководитель отдела логистики",80000]
["Инженер-конструктор I категории ",55000]
["Инженер-конструктор категории IIБ",45000]
["Инженер-конструктор категории IIВ",40000]
["Руководитель инжинирингового отдела",75000]
["Инженер по монтажу оборудования",60000]
["Инженер по сопровождению проектов",65000]
["Менеджер по сопровождению проектов",78000]
["Младший менеджер по сопровождению проектов",35000]
["Руководитель отдела управления проектами",80000]
["Руководитель проектов по колонному оборудованию",70000]
["Специалист по монтажу оборудования",54000]
["Специалист по оценке затрат",66000]
["Старший инженер по сопровождению проектов",70000]
["Ведущий инженер по монтажу оборудования",90000]
["Технический менеджер по продажам",110000]
["Инженер комплексных проектов",105000]
["Инженер-технолог комплексных проектов",140000]
["Менеджер по поддержке комплексных проектов",132000]
["Руководитель комплексных проектов",170000]
["Срециалист по закупкам",60000]
["Руководитель отдела управления персоналом",200000]
["Помощник генерального директора",150000]
["Директор по продажам",210000]
["Заместитель генерального директора ",105000]
["Менеджер (в коммерческой деятельности) по продажам",98000]
["Менеджер по инжинирингу и продаже оборудования для газопереработки",88000]
["Менеджер по подготовке тендерных предложений",130000]
["Менеджер по продаже  оборудования",100000]
["Руководитель отдела продаж",200000]
["Инженер-технолог",70000]
["Руководитель технологического отдела",250000]
["Менеджер по развитию технологий",130000]
["Руководитель группы",110000]
["Руководитель отдела продаж",170000]
["Секретарь-референт",40000]
["Инженер-технолог",80000]
["Начальник производства",165000]
["Ассистент",45000]
["Помощник начальника производства",80000]
["Водитель погрузчика",45000]
["Начальник цеха производства насадки",107000]
["Оператор-нарезчик металлической ленты",35000]
["Мастер участка",60000]
["Бригадир участка",50000]
["Оператор автоматических и полуавтоматических линий станков и установок 1 категории",45000]
["Оператор автоматических и полуавтоматических линий станков и установок 3 категории",35000]
["Оператор автоматических и полуавтоматических линий станков и установок 2 категории",40000]
["Мастер участка сборки и упаковки",30000]
["Слесарь по сборке металлоконструкций",50000]
["Оператор станков с программным управлением 1 категории",60000]
["Оператор станков с программным управлением 2 категории",55000]
["Станочник широкого профиля",50000]
["Старший оператор станков с программным управлением 1 категории",45000]
["Старший оператор станков с программным управлением 2 категории",45000]
["Бригадир участка электрогазосварки",54000]
["Инженер по сварке",60000]
["Электрогазосварщик 5 разряда",60000]
["Инженер по эксплуатации оборудования",49000]
["Инженер-механик",56000]
["Инженер-электромеханик",37000]
["Инженер по организации управления производством",70000]
["Инженер-программист",53000]
["Начальник отдела подготовки производства",76000]
["Программист ",56000]